bitfinex/quotes_BTCUSD_20250331
["timestamp","ask_amount","ask_price","bid_price","bid_amount"]
[1743458178343,0.2418373,82758.0,82755.0,0.253677]
[1743458180795,0.0001683,82758.0,82756.0,0.241674]
[1743458180990,0.2418373,82758.0,82756.0,0.241674]
[1743458181166,0.2418373,82758.0,82755.0,0.253677]
[1743458181714,0.2418373,82758.0,82755.0,0.247677]
[1743458181915,0.0001683,82758.0,82755.0,0.006]
[1743458182327,0.0001683,82758.0,82756.0,0.241674]
[1743458182847,0.2418363,82758.0,82756.0,0.247674]
[1743458183269,0.0001683,82758.0,82756.0,0.247674]
[1743458184007,0.0001683,82758.0,82756.0,0.253674]
[1743458184611,0.0001683,82758.0,82757.0,0.241671]
[1743458185738,0.0001683,82758.0,82757.0,0.247671]
[1743458186843,0.0001683,82758.0,82757.0,0.259754]
[1743458187044,0.0001683,82758.0,82757.0,0.265754]
[1743458188832,0.0001683,82758.0,82757.0,0.253671]
[1743458193912,0.253746,82761.0,82757.0,0.253671]
[1743458194800,0.253746,82761.0,82757.0,0.247671]
[1743458194939,0.253746,82761.0,82757.0,0.241671]
[1743458195138,0.241664,82760.0,82757.0,0.247671]
[1743458195583,0.241667,82759.0,82757.0,0.006]
[1743458195789,0.241664,82760.0,82757.0,0.006]
[1743458196302,0.253741,82762.0,82758.0,0.241667]
[1743458196665,0.241662,82760.0,82757.0,0.24767]
[1743458196873,0.241662,82760.0,82757.0,0.25367]
[1743458197082,0.241662,82760.0,82757.0,0.24167]
[1743458197286,0.241661,82761.0,82758.0,0.241668]
[1743458197481,0.241664,82760.0,82757.0,0.25367]
[1743458197715,0.253735,82764.0,82758.0,0.012083]
[1743458198321,0.241654,82763.0,82760.0,0.241661]
[1743458199989,0.241656,82762.0,82759.0,0.24166]
[1743458200194,0.241654,82763.0,82759.0,0.24166]
[1743458200619,0.241654,82763.0,82760.0,0.247661]
[1743458200864,0.241654,82763.0,82760.0,0.241661]
[1743458201058,0.241657,82762.0,82760.0,0.006]
[1743458201796,0.241657,82762.0,82760.0,0.012]
[1743458202009,0.241657,82762.0,82760.0,0.006]
[1743458202214,0.241657,82762.0,82760.0,0.012]
[1743458203177,0.241657,82762.0,82760.0,0.006]
[1743458203580,0.241657,82762.0,82760.0,0.253662]
[1743458204712,0.2418224,82763.0,82760.0,0.253662]
[1743458204897,0.241657,82762.0,82760.0,0.253662]
[1743458205257,0.241657,82762.0,82760.0,0.012]
[1743458205485,0.241657,82762.0,82760.0,0.247662]
[1743458206045,0.241659,82761.0,82760.0,0.006]
[1743458206184,0.241657,82762.0,82760.0,0.006]
[1743458207648,0.241657,82762.0,82760.0,0.012]
[1743458208106,0.241657,82762.0,82760.0,0.006]
[1743458208327,0.2418224,82763.0,82762.0,0.0762]
[1743458210284,0.2418224,82763.0,82762.0,0.0822]
[1743458211152,0.2418224,82763.0,82762.0,0.0882]
[1743458211576,0.0001684,82763.0,82762.0,0.0882]
[1743458211813,0.2418214,82763.0,82762.0,0.0882]
[1743458249482,0.0001684,82763.0,82762.0,0.0882]
[1743458249688,0.0001684,82763.0,82762.0,0.329856]
[1743458250356,0.0001684,82763.0,82762.0,0.341938]
[1743458255321,0.13607736,82767.0,82765.0,0.241646]
[1743458255515,0.12260386,82766.0,82765.0,0.241646]
[1743458255719,0.12260386,82766.0,82765.0,0.376406]
[1743458256495,0.1230679,82766.0,82765.0,0.376406]
[1743458257012,0.1230679,82766.0,82765.0,0.381406]
[1743458257282,0.1230679,82766.0,82765.0,0.387406]
[1743458258809,0.1230679,82766.0,82765.0,0.381406]
[1743458259024,0.1230679,82766.0,82765.0,0.387406]
[1743458261280,0.1230679,82766.0,82765.0,0.399488]
[1743458264730,0.1232363,82766.0,82765.0,0.399488]
[1743458275767,0.1232363,82766.0,82765.0,0.387406]
[1743458276019,0.1232363,82766.0,82765.0,0.14576]
[1743458276909,0.1232363,82766.0,82765.0,0.387408]
[1743458277705,0.1232363,82766.0,82765.0,0.14576]
[1743458277947,0.1232363,82766.0,82765.0,0.0113366]
[1743458277948,0.39452492,82766.0,82765.0,0.0113366]
[1743458278159,0.97058573,82766.0,82765.0,0.0113366]
[1743458278327,0.97058573,82766.0,82765.0,6e-07]
[1743458278538,0.83327192,82766.0,82765.0,6e-07]
[1743458278749,0.86888569,82766.0,82765.0,6e-07]
[1743458279130,0.87794175,82766.0,82765.0,6e-07]
[1743458279524,0.87794175,82766.0,82765.0,0.0030006]
[1743458279780,0.87794175,82766.0,82765.0,6e-07]
[1743458280182,0.553741,82761.0,82760.0,4e-07]
[1743458280384,0.76568571,82761.0,82760.0,4e-07]
[1743458280593,0.553767,82753.0,82752.0,0.0003368]
[1743458280851,1.74491171,82753.0,82752.0,0.0003368]
[1743458281377,1.82417948,82753.0,82752.0,8e-07]
[1743458281512,0.253803,82741.0,82740.0,0.0003368]
[1743458281723,1.39630271,82741.0,82740.0,0.0003368]
[1743458281923,1.45630271,82741.0,82740.0,0.0003368]
[1743458282145,1.39630271,82741.0,82740.0,0.0003368]
[1743458282727,1.69637557,82741.0,82740.0,0.0003368]
[1743458284006,1.69637557,82741.0,82740.0,0.0043368]
[1743458284201,1.69637557,82741.0,82740.0,0.0003368]
[1743458284406,1.69737557,82741.0,82740.0,0.0073368]
[1743458285164,1.69637557,82741.0,82740.0,0.0043368]
[1743458285364,2.10627557,82741.0,82740.0,0.0043368]
[1743458285809,1.10192057,82741.0,82740.0,0.0073368]
[1743458285987,2.45991257,82741.0,82740.0,0.0073368]
[1743458287454,1.90947157,82741.0,82740.0,0.0073368]
[1743458287597,1.10192057,82741.0,82740.0,0.0073368]
[1743458288003,1.08737972,82741.0,82740.0,0.0073368]
[1743458288206,1.10192057,82741.0,82740.0,0.0073368]
[1743458293322,1.08737972,82741.0,82740.0,0.0073368]
[1743458293962,0.78737972,82741.0,82740.0,0.0073368]
[1743458296083,0.37747972,82741.0,82740.0,0.0073368]
[1743458311391,0.39202057,82741.0,82740.0,0.0073368]
[1743458311746,0.253812,82738.0,82736.0,0.0003364]
[1743458312125,0.78631586,82738.0,82736.0,0.0003364]
[1743458312481,1.10085671,82738.0,82737.0,8e-07]
[1743458312685,0.241791,82716.0,82715.0,0.0491]
[1743458312897,0.241791,82716.0,82715.0,0.18386]
[1743458313224,0.253888,82713.0,82710.0,0.0003364]
[1743458313381,0.69103271,82713.0,82710.0,0.0003364]
[1743458313675,0.7139735,82713.0,82710.0,0.0003364]
[1743458314044,0.7139735,82713.0,82712.0,0.00047567]
[1743458314243,0.7139735,82713.0,82710.0,7e-08]
[1743458314244,0.553895,82711.0,82710.0,7e-08]
[1743458314577,0.69103971,82711.0,82710.0,0.00013942]
[1743458314777,0.69103971,82711.0,82710.0,4.2e-07]
[1743458314956,0.78923559,82711.0,82710.0,4.2e-07]
[1743458315886,0.553944,82695.0,82682.0,0.0003368]
[1743458316024,0.84704471,82695.0,82694.0,0.00038284]
[1743458316223,1.16816448,82695.0,82694.0,0.00038284]
[1743458316484,1.16816448,82695.0,82694.0,8.4e-07]
[1743458316485,1.79307208,82695.0,82694.0,8.4e-07]
[1743458316671,1.20462008,82695.0,82694.0,8.4e-07]
[1743458317223,0.254011,82673.0,82672.0,0.13476]
[1743458317430,0.37661486,82673.0,82672.0,0.13480645]
[1743458317539,0.45588263,82673.0,82672.0,4.645e-05]
[1743458318627,0.47042348,82673.0,82672.0,4.645e-05]
[1743458319610,0.4940943,82673.0,82672.0,4.645e-05]
[1743458319972,0.4960943,82673.0,82672.0,0.00204645]
[1743458320303,0.39315571,82673.0,82672.0,0.00204645]
[1743458320519,0.80305571,82673.0,82672.0,0.00204645]
[1743458326658,0.84173729,82673.0,82672.0,0.00204645]
[1743458327268,0.88232348,82673.0,82672.0,0.00204645]
[1743458328243,0.88132348,82673.0,82672.0,0.00204645]
[1743458328482,0.83973729,82673.0,82672.0,4.645e-05]
[1743458328805,0.80305571,82673.0,82672.0,0.00204645]
[1743458329008,0.80305571,82673.0,82672.0,0.00221485]
[1743458329916,0.84173729,82673.0,82672.0,0.00221485]
[1743458330364,1.14173729,82673.0,82672.0,0.00221485]
[1743458331448,1.13973729,82673.0,82672.0,0.00021485]
[1743458331597,0.82040236,82673.0,82672.0,0.00221485]
[1743458331798,1.07541336,82673.0,82672.0,0.00221485]
[1743458332325,1.06087251,82673.0,82672.0,0.00221485]
[1743458334840,0.4109,82673.0,82672.0,0.08151485]
[1743458335039,0.4109,82673.0,82672.0,0.32343385]
[1743458335296,0.4109,82673.0,82672.0,0.08151485]
[1743458336427,0.4109,82673.0,82672.0,0.13081485]
[1743458338052,0.001,82673.0,82672.0,0.13081485]
[1743458338655,0.001,82673.0,82672.0,0.37273385]
[1743458339396,0.001,82673.0,82672.0,0.38482885]
[1743458340257,0.012091,82702.0,82672.0,0.38482885]
[1743458340258,0.02424693,82695.0,82694.0,0.373155]
[1743458340586,0.02424693,82695.0,82694.0,0.520087]
[1743458341097,0.241844,82698.0,82694.0,0.520087]
[1743458341303,0.241844,82698.0,82694.0,0.507994]
[1743458341500,0.241847,82697.0,82694.0,0.507995]
[1743458342033,0.02374057,82702.0,82701.0,0.253926]
[1743458342213,0.4099,82705.0,82704.0,0.253917]
[1743458342655,0.4099,82705.0,82704.0,0.303317]
[1743458342971,0.02453039,82712.0,82704.0,0.303317]
[1743458342972,0.02453039,82712.0,82711.0,0.253895]
[1743458343126,0.241784,82719.0,82715.0,0.241793]
[1743458343340,0.01209,82712.0,82711.0,0.13484]
[1743458343538,0.253892,82712.0,82711.0,0.13484]
[1743458344939,0.39103671,82712.0,82711.0,0.003]
[1743458345147,0.42971829,82712.0,82711.0,0.003]
[1743458345545,0.72971829,82712.0,82711.0,0.003]
[1743458345751,0.92293448,82712.0,82711.0,1e-06]
[1743458346144,0.98543448,82712.0,82711.0,1e-06]
[1743458346768,0.253968,82687.0,82686.0,0.1348]
[1743458346965,0.37657186,82687.0,82686.0,0.1348]
[1743458347368,0.012092,82696.0,82686.0,0.1348]
[1743458347568,0.241842,82699.0,82687.0,0.08]
[1743458347797,0.541828,82704.0,82694.0,0.241855]
[1743458348014,0.541828,82704.0,82694.0,0.300047]
[1743458348194,0.241837,82700.0,82694.0,0.300047]
[1743458348586,0.541828,82704.0,82694.0,0.300047]
[1743458348799,0.241832,82702.0,82694.0,0.300047]
[1743458349163,0.4109,82695.0,82694.0,0.302047]
[1743458350470,0.4109,82695.0,82694.0,0.306047]
[1743458351348,0.77535586,82695.0,82694.0,0.006]
[1743458351542,0.78744786,82695.0,82694.0,0.006]
[1743458351744,0.80198871,82695.0,82694.0,0.006]
[1743458351943,1.10198871,82695.0,82694.0,0.006]
[1743458352346,0.69242571,82695.0,82694.0,0.006]
[1743458353292,1.55285171,82695.0,82694.0,0.006]
[1743458353434,1.56210656,82695.0,82694.0,1e-06]
[1743458354172,0.254006,82675.0,82674.0,0.13492]
[1743458354370,0.37660986,82675.0,82674.0,0.13496645]
[1743458355669,0.37660986,82675.0,82674.0,0.13996645]
[1743458356030,0.37760986,82675.0,82674.0,0.14096645]
[1743458359352,0.001,82675.0,82674.0,0.14096645]
[1743458359553,0.001,82675.0,82674.0,0.47057545]
[1743458363983,0.001,82675.0,82674.0,0.47074395]
[1743458371574,0.013095,82675.0,82674.0,0.00621495]
[1743458371774,0.37760986,82675.0,82674.0,0.00621495]
[1743458372898,0.37660986,82675.0,82674.0,0.00521495]
[1743458373533,0.37660986,82675.0,82674.0,0.00021495]
[1743458373900,0.37660986,82675.0,82674.0,0.00421495]
[1743458374102,0.37760986,82675.0,82674.0,0.00421495]
[1743458376079,0.3133494,82675.0,82674.0,0.00421495]
[1743458376770,0.3254444,82675.0,82674.0,0.00421495]
[1743458377153,0.33998525,82675.0,82674.0,0.00421495]
[1743458377400,0.63998525,82675.0,82674.0,0.00421495]
[1743458381865,0.38597925,82675.0,82674.0,0.00421495]
[1743458382078,0.63998525,82675.0,82674.0,0.00421495]
[1743458383916,0.6133494,82675.0,82674.0,0.00421495]
[1743458384116,0.6254444,82675.0,82674.0,0.00421495]
[1743458384406,0.3254444,82675.0,82674.0,0.00421495]
[1743458385504,0.255006,82675.0,82674.0,0.00421495]
[1743458391657,0.242911,82675.0,82674.0,0.00421495]
[1743458392165,0.255006,82675.0,82674.0,0.00421495]
[1743458399498,0.255343,82675.0,82674.0,0.00421495]
[1743458402272,0.39248771,82675.0,82674.0,0.00421495]
[1743458409222,0.37794686,82675.0,82674.0,0.00421495]
[1743458409566,0.001337,82675.0,82674.0,0.08161495]
[1743458409780,0.001337,82675.0,82674.0,0.38192395]
[1743458412308,0.241881,82685.0,82678.0,0.241899]
[1743458412548,0.241894,82681.0,82678.0,0.241899]
[1743458413360,0.241893,82682.0,82678.0,0.241899]
[1743458413841,0.0236947,82686.0,82679.0,0.012094]
[1743458414023,0.24189,82682.0,82677.0,0.253998]
[1743458414222,0.241899,82679.0,82678.0,0.002]
[1743458414451,0.253993,82679.0,82678.0,0.002]
[1743458414776,0.241911,82675.0,82674.0,0.12391495]
[1743458414934,0.241911,82675.0,82674.0,0.25911495]
[1743458415116,0.241909,82676.0,82674.0,0.25911495]
[1743458415319,0.012094,82681.0,82674.0,0.12391495]
[1743458415520,0.241911,82675.0,82674.0,0.04651495]
[1743458415745,0.241911,82675.0,82674.0,0.18171495]
[1743458416003,0.241908,82676.0,82674.0,0.18171495]
[1743458416383,0.241911,82675.0,82674.0,0.04651495]
[1743458416586,0.241911,82675.0,82674.0,0.18179495]
[1743458417919,0.241911,82675.0,82674.0,0.18579495]
[1743458418101,0.242911,82675.0,82674.0,0.18579495]
[1743458428108,0.242911,82675.0,82674.0,0.05051495]
[1743458428303,0.255006,82675.0,82674.0,0.00421495]
[1743458445827,0.37760986,82675.0,82674.0,0.00421495]
[1743458447825,0.37660986,82675.0,82674.0,0.00021495]
[1743458448021,0.37760986,82675.0,82674.0,0.00221495]
[1743458448581,0.37660986,82675.0,82674.0,0.00221495]
[1743458448789,0.37760986,82675.0,82674.0,0.00221495]
[1743458456478,0.39215071,82675.0,82674.0,0.00221495]
[1743458456837,0.69215071,82675.0,82674.0,0.00221495]
[1743458459427,1.32375729,82675.0,82674.0,0.00221495]
[1743458460790,0.56854985,82674.0,82673.0,4.5e-07]
[1743458461152,2.35000971,82674.0,82673.0,4.5e-07]
[1743458461330,0.69115371,82674.0,82673.0,4.5e-07]
[1743458461902,2.15347185,82673.0,82672.0,8.5e-07]
[1743458462106,1.47687785,82672.0,82671.0,8.5e-07]
[1743458462305,1.47687785,82672.0,82671.0,4.731e-05]
[1743458462306,0.69115871,82672.0,82671.0,4.731e-05]
[1743458462733,0.69115871,82672.0,82671.0,3.1e-07]
[1743458462899,0.72984029,82672.0,82671.0,3.1e-07]
[1743458463895,0.78372648,82672.0,82671.0,3.1e-07]
[1743458464108,0.616558,82658.0,82657.0,1.1e-07]
[1743458464348,0.616558,82658.0,82629.0,8e-07]
[1743458464349,0.554144,82630.0,82629.0,8e-07]
[1743458464568,0.26873385,82614.0,82599.0,0.0776]
[1743458464765,0.56873985,82612.0,82611.0,6.3e-07]
[1743458465001,0.254261,82592.0,82590.0,0.0001683]
[1743458465185,0.26880185,82592.0,82590.0,0.0001683]
[1743458465380,1.23383671,82592.0,82590.0,0.0001683]
[1743458465956,1.23383671,82592.0,82591.0,0.00063318]
[1743458467194,1.17152871,82592.0,82591.0,0.00063318]
[1743458467394,1.14018171,82592.0,82591.0,0.00063318]
[1743458467603,1.11972447,82592.0,82591.0,0.00063318]
[1743458467803,0.87780647,82592.0,82591.0,0.00063318]
[1743458467977,0.87880647,82592.0,82591.0,0.00063318]
[1743458468346,0.82240647,82592.0,82591.0,0.00263318]
[1743458468951,0.72577223,82592.0,82591.0,0.00263318]
[1743458472120,0.71123138,82592.0,82591.0,0.00263318]
[1743458477487,0.15697038,82592.0,82591.0,0.00263318]
[1743458477685,0.16020762,82592.0,82591.0,0.00263318]
[1743458477914,0.16020762,82592.0,82591.0,0.00989436]
[1743458478040,0.16020762,82592.0,82591.0,0.00263318]
[1743458478860,0.16943099,82592.0,82591.0,0.00263318]
[1743458479408,0.41158499,82592.0,82591.0,0.00263318]
[1743458479754,0.41158499,82592.0,82591.0,0.00989436]
[1743458480080,0.41158499,82592.0,82591.0,0.00263318]
[1743458483929,0.02549676,82592.0,82591.0,0.07813318]
[1743458484133,0.02549676,82592.0,82591.0,0.37879718]
[1743458484335,0.02549676,82592.0,82591.0,0.38605836]
[1743458484608,0.001,82592.0,82591.0,0.38605836]
[1743458485699,0.001,82592.0,82591.0,0.38405836]
[1743458485829,0.002,82592.0,82591.0,0.38605836]
[1743458486233,0.001,82592.0,82591.0,0.38605836]
[1743458486549,0.002,82592.0,82591.0,0.39105836]
[1743458487164,0.001,82592.0,82591.0,0.38605836]
[1743458487479,0.002,82592.0,82591.0,0.39105836]
[1743458489480,0.002,82592.0,82591.0,0.44105836]
[1743458492368,0.012442,82607.0,82601.0,0.242125]
[1743458492550,0.242116,82605.0,82602.0,0.13812]
[1743458492776,0.242119,82604.0,82602.0,0.14528079]
[1743458493576,0.242121,82603.0,82602.0,0.14528079]
[1743458494544,0.001,82604.0,82602.0,0.15028079]
[1743458494851,0.242116,82605.0,82602.0,0.14528079]
[1743458495068,0.242116,82605.0,82602.0,0.14928079]
[1743458495451,0.242119,82604.0,82602.0,0.14528079]
[1743458495652,0.242119,82604.0,82602.0,0.14828079]
[1743458496202,0.001,82603.0,82602.0,0.15028079]
[1743458496584,0.242119,82604.0,82602.0,0.14528079]
[1743458496990,0.243119,82604.0,82602.0,0.15028079]
[1743458497217,0.254227,82603.0,82602.0,0.01216079]
[1743458497423,0.254227,82603.0,82602.0,0.01516079]
[1743458497424,0.39137171,82603.0,82602.0,0.01516079]
[1743458497595,0.43174044,82603.0,82602.0,0.01216079]
[1743458497794,0.43174044,82603.0,82602.0,0.005]
[1743458497956,0.39137171,82603.0,82602.0,0.003]
[1743458498361,0.39137171,82603.0,82591.0,0.05063318]
[1743458498362,0.254261,82592.0,82591.0,0.05063318]
[1743458498759,0.254261,82592.0,82591.0,0.05789436]
[1743458499987,0.254261,82592.0,82591.0,0.05063318]
[1743458500245,0.255261,82592.0,82591.0,0.05563318]
[1743458500601,0.255261,82592.0,82591.0,0.06063318]
[1743458501882,0.69240571,82592.0,82591.0,0.06]
[1743458502012,0.69240571,82592.0,82591.0,1.8e-07]
[1743458502597,0.71706235,82592.0,82591.0,1.8e-07]
[1743458502855,0.72091335,82592.0,82591.0,1.8e-07]
[1743458503030,0.72191335,82592.0,82591.0,0.00500018]
[1743458503443,0.56880485,82591.0,82590.0,4.8e-07]
[1743458503603,0.69140871,82591.0,82590.0,9.6e-07]
[1743458504586,0.73377744,82591.0,82590.0,9.6e-07]
[1743458504776,0.254292,82582.0,82581.0,9.6e-07]
[1743458504992,0.69143671,82582.0,82581.0,7.5e-07]
[1743458505198,0.73180544,82582.0,82581.0,7.5e-07]
[1743458505336,0.77201201,82582.0,82581.0,7.5e-07]
[1743458505535,0.79096942,82582.0,82581.0,7.5e-07]
[1743458506247,0.97607328,82582.0,82581.0,7.5e-07]
[1743458507333,0.554316,82574.0,82573.0,7.5e-07]
[1743458507551,0.77203601,82574.0,82573.0,9.076e-05]
[1743458507751,1.72259201,82574.0,82573.0,9.076e-05]
[1743458508934,1.72459201,82574.0,82573.0,9.076e-05]
[1743458509118,0.92909771,82574.0,82573.0,9.076e-05]
[1743458509685,0.69346071,82574.0,82573.0,9.076e-05]
[1743458509883,0.92909771,82574.0,82573.0,9.076e-05]
[1743458510503,0.9528302,82574.0,82573.0,9.076e-05]
[1743458512652,0.7588221,82574.0,82573.0,9.076e-05]
[1743458512806,0.79919083,82574.0,82573.0,9.076e-05]
[1743458513352,0.81130083,82574.0,82573.0,9.076e-05]
[1743458513499,0.8515074,82574.0,82573.0,7.6e-07]
[1743458513710,0.6158704,82574.0,82573.0,7.6e-07]
[1743458515811,0.74278773,82574.0,82573.0,7.6e-07]
[1743458516019,0.70258116,82574.0,82573.0,7.6e-07]
[1743458516386,0.58459618,82574.0,82573.0,7.6e-07]
[1743458516773,0.64809618,82574.0,82573.0,7.6e-07]
[1743458516968,0.64809618,82574.0,82573.0,3.6e-07]
[1743458517168,0.68449718,82574.0,82573.0,3.6e-07]
[1743458517592,0.68249718,82574.0,82573.0,3.6e-07]
[1743458517983,0.80910104,82574.0,82573.0,3.6e-07]
[1743458518164,0.80810104,82574.0,82573.0,3.6e-07]
[1743458518365,0.80910104,82574.0,82573.0,3.6e-07]
[1743458520966,0.86826912,82574.0,82573.0,3.6e-07]
[1743458521321,0.56892485,82552.0,82551.0,0.004]
[1743458521500,0.56892485,82552.0,82517.0,0.254491]
[1743458521501,0.26898385,82533.0,82532.0,0.081]
[1743458521722,0.254452,82530.0,82529.0,0.0462]
[1743458521894,0.39159671,82530.0,82529.0,0.0462]
[1743458522096,0.26900185,82527.0,82526.0,0.081]
[1743458522297,0.254476,82522.0,82521.0,0.00413913]
[1743458522501,0.39162071,82522.0,82521.0,0.00413913]
[1743458523576,0.39954928,82522.0,82521.0,0.00413913]
[1743458523813,0.02246942,82522.0,82521.0,0.01625713]
[1743458523985,0.012113,82552.0,82545.0,0.012114]
[1743458524135,0.012113,82553.0,82542.0,0.012115]
[1743458524136,0.36488186,82550.0,82547.0,0.0786]
[1743458524336,0.147477,82550.0,82547.0,0.0786]
[1743458524613,0.389755,82550.0,82548.0,0.00765388]
[1743458524825,0.389755,82550.0,82549.0,0.0454]
[1743458524826,0.02487314,82550.0,82549.0,0.0454]
[1743458525044,0.242271,82552.0,82549.0,0.0454]
[1743458525045,0.254387,82551.0,82549.0,0.18596]
[1743458525426,0.012113,82550.0,82549.0,0.18596]
[1743458525572,0.012113,82550.0,82549.0,0.18609913]
[1743458525771,0.242274,82551.0,82549.0,0.18637913]
[1743458525969,0.13471686,82550.0,82549.0,0.04553913]
[1743458526584,0.001,82551.0,82549.0,0.05765313]
[1743458526807,0.001,82551.0,82550.0,0.25439]
[1743458527005,0.001,82551.0,82550.0,0.33599]
[1743458527657,0.02453338,82557.0,82556.0,0.242259]
[1743458527993,0.02453338,82557.0,82555.0,0.254375]
[1743458528194,0.012113,82551.0,82550.0,0.0816]
[1743458528421,0.37699086,82551.0,82550.0,0.22272]
[1743458528615,0.37799086,82551.0,82550.0,0.22272]
[1743458529057,0.001,82551.0,82550.0,0.47711]
[1743458530032,0.001,82551.0,82550.0,0.52251]
[1743458530248,0.0013372,82551.0,82550.0,0.52251]
[1743458530480,0.0013372,82551.0,82550.0,0.127]
[1743458530807,0.0013372,82551.0,82550.0,0.280433]
[1743458530939,0.0003372,82551.0,82550.0,0.280433]
[1743458531457,0.242207,82574.0,82550.0,0.280433]
[1743458531458,0.242222,82569.0,82566.0,0.127]
[1743458531662,0.242225,82568.0,82567.0,0.14148]
[1743458531870,0.254333,82569.0,82567.0,0.14148]
[1743458532384,0.242197,82578.0,82567.0,0.14148]
[1743458532385,0.012109,82578.0,82567.0,0.383706]
[1743458532587,0.3,82573.0,82567.0,0.383706]
[1743458532807,0.242213,82572.0,82568.0,0.242224]
[1743458533220,0.55432,82573.0,82568.0,0.242222]
[1743458533417,0.242213,82572.0,82568.0,0.242222]
[1743458533543,0.02408911,82575.0,82573.0,0.254318]
[1743458533743,0.02408911,82575.0,82572.0,0.242209]
[1743458534032,0.03619911,82575.0,82567.0,0.153591]
[1743458534209,0.03619911,82575.0,82569.0,0.012111]
[1743458534383,0.02408911,82575.0,82570.0,0.01211]
[1743458534591,0.012109,82583.0,82577.0,0.242196]
[1743458534793,0.242182,82583.0,82578.0,0.242193]
[1743458534983,0.242182,82583.0,82577.0,0.012109]
[1743458534984,0.2425212,82582.0,82577.0,0.012109]
[1743458535187,0.242187,82581.0,82576.0,0.254309]
[1743458535568,0.0003372,82582.0,82579.0,0.24219]
[1743458535775,0.2425222,82582.0,82579.0,0.00013913]
[1743458536263,0.012109,82580.0,82579.0,0.00013913]
[1743458536410,0.14925371,82580.0,82579.0,0.00013913]
[1743458536667,0.012109,82580.0,82579.0,0.00013913]
[1743458537033,0.012109,82580.0,82579.0,0.00750986]
[1743458537214,0.012109,82580.0,82579.0,0.00013913]
[1743458537680,0.0003372,82582.0,82580.0,0.0816]
[1743458537883,0.3003372,82582.0,82580.0,0.0816]
[1743458538084,0.3003372,82582.0,82581.0,0.00735247]
[1743458538293,0.0003372,82582.0,82581.0,0.00735247]
[1743458538650,0.0124462,82582.0,82581.0,0.00735247]
[1743458539117,0.13807728,82582.0,82581.0,0.00735247]
[1743458539250,0.254295,82581.0,82580.0,0.003]
[1743458539459,0.37689886,82581.0,82580.0,0.003]
[1743458539667,0.0003372,82582.0,82580.0,0.003]
[1743458539906,0.0003372,82582.0,82581.0,0.01946147]
[1743458540128,0.0003372,82582.0,82581.0,0.00735247]
[1743458540325,0.2425202,82582.0,82581.0,0.00735247]
[1743458540555,0.2425202,82582.0,82581.0,0.003]
[1743458540880,0.0003372,82582.0,82581.0,0.01035247]
[1743458541112,0.0003372,82582.0,82581.0,0.385095]
[1743458541320,0.0003372,82582.0,82581.0,0.13815247]
[1743458541529,0.2546292,82582.0,82581.0,0.28039247]
[1743458541700,0.2425202,82582.0,82581.0,0.28039247]
[1743458541903,0.0003372,82582.0,82581.0,0.28039247]
[1743458542107,0.0003372,82582.0,82581.0,0.27739247]
[1743458542269,0.2425202,82582.0,82581.0,0.27939247]
[1743458542478,0.0003372,82582.0,82581.0,0.27939247]
[1743458543545,0.0003372,82582.0,82581.0,0.53768747]
[1743458543691,0.0003372,82582.0,82581.0,0.53968747]
[1743458543895,0.0003372,82582.0,82581.0,0.53368747]
[1743458544352,0.37723306,82582.0,82581.0,0.01535247]
[1743458544553,0.37723306,82582.0,82581.0,0.008]
[1743458545748,0.12294106,82582.0,82581.0,0.008]
[1743458546097,0.0003372,82582.0,82581.0,0.26964747]
[1743458546227,0.0003372,82582.0,82581.0,0.35194747]
[1743458546437,0.0003372,82582.0,82581.0,0.34994747]
[1743458546890,0.0003372,82582.0,82581.0,0.35194747]
[1743458547298,0.0003372,82582.0,82581.0,0.34394747]
[1743458547472,2e-07,82582.0,82581.0,0.39814747]
[1743458547657,2e-07,82582.0,82581.0,0.52075133]
[1743458547857,2e-07,82582.0,82581.0,0.92075133]
[1743458548081,2e-07,82582.0,82581.0,1.41675133]
[1743458548294,2e-07,82582.0,82581.0,1.42275133]
[1743458548494,2e-07,82582.0,82581.0,0.89814747]
[1743458548772,2e-07,82582.0,82581.0,0.79892147]
[1743458549020,2e-07,82582.0,82581.0,0.79292147]
[1743458549192,2e-07,82582.0,82581.0,0.79892147]
[1743458549601,2e-07,82582.0,82581.0,0.29892147]
[1743458549799,2e-07,82582.0,82581.0,0.30292147]
[1743458549999,2e-07,82582.0,82581.0,0.29892147]
[1743458550431,0.0010002,82582.0,82581.0,0.29792147]
[1743458551383,0.0010002,82582.0,82581.0,0.30392147]
[1743458551849,0.0010002,82582.0,82581.0,0.29792147]
[1743458552207,0.0010002,82582.0,82581.0,0.30392147]
[1743458553090,0.0010002,82582.0,82581.0,0.54610747]
[1743458554899,0.0010002,82582.0,82581.0,0.54627597]
[1743458555101,0.2431832,82582.0,82581.0,0.14902097]
[1743458555307,0.0010002,82582.0,82581.0,0.41573597]
[1743458555514,0.0010002,82582.0,82581.0,0.16148097]
[1743458555712,0.0010002,82582.0,82581.0,0.40366697]
[1743458555918,0.0010002,82582.0,82581.0,0.41577597]
[1743458556334,2e-07,82582.0,82581.0,0.41077597]
[1743458556537,0.0010002,82582.0,82581.0,0.41577597]
[1743458557049,0.0010002,82582.0,82581.0,0.54227597]
[1743458557222,0.0010002,82582.0,82581.0,0.53679597]
[1743458557389,0.0010002,82582.0,82581.0,0.39931597]
[1743458557592,0.0010002,82582.0,82581.0,0.54279597]
[1743458557814,0.0010002,82582.0,82581.0,0.39931597]
[1743458558152,0.0010002,82582.0,82581.0,0.14502097]
[1743458558329,0.0010002,82582.0,82581.0,0.30056997]
[1743458558726,0.0010002,82582.0,82581.0,0.54275597]
[1743458559731,0.0010002,82582.0,82581.0,0.59275597]
[1743458560698,0.2431832,82582.0,82581.0,0.33846097]
[1743458560909,0.2552922,82582.0,82581.0,0.21212097]
[1743458561058,0.2552922,82582.0,82581.0,0.45430697]
[1743458561059,0.0010002,82582.0,82581.0,0.45430697]
[1743458561464,0.0010002,82582.0,82581.0,0.46641597]
[1743458562071,0.0010002,82582.0,82581.0,0.06852097]
[1743458562296,0.0010002,82582.0,82581.0,0.46717597]
[1743458565691,0.0010002,82582.0,82581.0,0.46689597]
[1743458566824,0.0010002,82582.0,82581.0,0.59369597]
[1743458566998,0.0010002,82582.0,82581.0,0.19532097]
[1743458567235,0.0010002,82582.0,82581.0,0.59397597]
[1743458571111,0.0010002,82582.0,82581.0,0.44961597]
[1743458571572,0.0010002,82582.0,82581.0,0.59393597]
[1743458572712,0.0010002,82582.0,82581.0,0.33972097]
[1743458572860,0.0010002,82582.0,82581.0,0.71665983]
[1743458573063,2e-07,82582.0,82581.0,1.01665983]